Workbook

Sheet Лист1
A1: Школа | C1: МБОУ "Слобода Волчинская ООШ | F1: Утвердил: | G1: должность | H1: директор
A2: Типовое примерное меню приготавливаемых блюд | G2: фамилия | H2: Глушкова Е. А.
A3: Возрастная категория | E3: 7-11 лет | G3: дата | H3: 1 | I3: 9 | J3: 2023
H4: день | I4: месяц | J4: год
A5: Неделя | B5: День недели | C5: Прием пищи | D5: Раздел меню | E5: Блюда | F5: Вес блюда, г | G5: Белки | H5: Жиры | I5: Углеводы | J5: Калорийность | K5: № рецептуры | L5: Цена
A6: 1 | B6: 1 | C6: Завтрак | D6: гор.блюдо | E6: птица тушеная | F6: 50 | G6: 11.65 | H6: 11.66 | I6: 3.51 | J6: 166 | K6: 290
E7: соус | F7: 50
E8: каша гречневая рассыпчатая | F8: 150 | G8: 8.57 | H8: 9.25 | I8: 38.61 | J8: 271.25 | K8: 171
E9: масло сливочное | F9: 5
D10: гор.напиток | E10: компот из сухофруктов | F10: 200 | G10: 0.66 | H10: 0.09 | I10: 32.01 | J10: 132.8 | K10: 349
D11: хлеб | E11: пшеничный | F11: 40 | G11: 3.04 | H11: 0.32 | I11: 15.68 | J11: 94.66 | K11: ПР
D12: хлеб | E12: сельский | F12: 30 | G12: 1.5 | H12: 0.3 | I12: 13.5 | J12: 66 | K12: ПР
E13: печенье | F13: 30 | G13: 2.25 | H13: 2.94 | I13: 22.32 | J13: 124.5 | K13: ПР
D14: фрукты | E14: яблоко | F14: 100 | G14: 0.4 | H14: 0.4 | I14: 9.8 | J14: 47 | K14: 338
D16: итого | F16: =SUM(F6:F15) -> 655 | G16: =SUM(G6:G15) -> 28.07 | H16: 24.96 | I16: 135.43 | J16: 902.21 | L16: =SUM(L6:L15) -> 0
A17: =A6 -> 1 | B17: =B6 -> 1 | C17: Обед | D17: закуска
D18: 1 блюдо
D19: 2 блюдо
D20: гарнир
D21: напиток
D22: хлеб бел.
D23: хлеб черн.
D26: итого | F26: =SUM(F17:F25) -> 0 | G26: =SUM(G17:G25) -> 0 | H26: 0 | I26: 0 | J26: 0 | L26: =SUM(L17:L25) -> 0
A27: =A6 -> 1 | B27: =B6 -> 1 | C27: Итого за день: | F27: =F16+F26 -> 655 | G27: =G16+G26 -> 28.07 | H27: 24.96 | I27: 135.43 | J27: 902.21 | L27: =L16+L26 -> 0
A28: 1 | B28: 2 | C28: Завтрак | D28: гор.блюдо | E28: суп картофельный с крупой | F28: 250 | G28: 5.95 | H28: 5.06 | I28: 12.25 | J28: 124.97 | K28: 101
E29: мясная фрикаделька | F29: 20
D30: гор.напиток | E30: кофейный напиток | F30: 200 | G30: 3.16 | H30: 2.67 | I30: 15.94 | J30: 100.6 | K30: 379
D31: хлеб | E31: пшеничный | F31: 50 | G31: 3.8 | H31: 0.4 | I31: 19.6 | J31: 118.33 | K31: ПР
D32: хлеб | E32: сельский | F32: 30 | G32: 1.5 | H32: 0.3 | I32: 13.5 | J32: 66 | K32: ПР
E33: булочка домашняя | F33: 60 | G33: 4.37 | H33: 7.51 | I33: 26.35 | J33: 190.8 | K33: 424
D34: фрукты | E34: яблоко | F34: 100 | G34: 0.4 | H34: 0.4 | I34: 9.8 | J34: 47 | K34: 338
D37: итого | F37: =SUM(F28:F36) -> 710 | G37: =SUM(G28:G36) -> 19.18 | H37: =SUM(H28:H36) -> 16.34 | I37: =SUM(I28:I36) -> 97.44 | J37: =SUM(J28:J36) -> 647.7 | L37: 0
A38: =A28 -> 1 | B38: =B28 -> 2 | C38: Обед | D38: закуска
D39: 1 блюдо
D40: 2 блюдо
D41: гарнир
D42: напиток
D43: хлеб бел.
D44: хлеб черн.
D47: итого | F47: =SUM(F38:F46) -> 0 | G47: =SUM(G38:G46) -> 0 | H47: =SUM(H38:H46) -> 0 | I47: =SUM(I38:I46) -> 0 | J47: =SUM(J38:J46) -> 0 | L47: 0
A48: =A28 -> 1 | B48: =B28 -> 2 | C48: Итого за день: | F48: =F37+F47 -> 710 | G48: =G37+G47 -> 19.18 | H48: =H37+H47 -> 16.34 | I48: =I37+I47 -> 97.44 | J48: =J37+J47 -> 647.7 | L48: 0
A49: 1 | B49: 3 | C49: Завтрак | D49: гор.блюдо | E49: рыба тушенная в томате с овощами | F49: 110 | G49: 10.72 | H49: 5.44 | I49: 4.18 | J49: 115.5 | K49: 229
E50: пюре картофельное | F50: 150 | G50: 3.06 | H50: 4.8 | I50: 20.43 | J50: 137.25 | K50: 312
D51: закуска | E51: салат из белокачанной капусты | F51: 100 | G51: 1.31 | H51: 3.24 | I51: 6.45 | J51: 60.4 | K51: 45
D52: гор.напиток | E52: чай черный с сахаром | F52: 200 | G52: 0.07 | H52: 0.02 | I52: 15 | J52: 60 | K52: 376
D53: хлеб | E53: пшеничный | F53: 40 | G53: 3.04 | H53: 0.32 | I53: 15.68 | J53: 94.66 | K53: ПР
D54: хлеб | E54: сельский | F54: 30 | G54: 1.5 | H54: 0.3 | I54: 13.5 | J54: 66 | K54: ПР
D55: фрукты
D58: итого | F58: =SUM(F49:F57) -> 630 | G58: =SUM(G49:G57) -> 19.7 | H58: =SUM(H49:H57) -> 14.12 | I58: =SUM(I49:I57) -> 75.24 | J58: =SUM(J49:J57) -> 533.81 | L58: 0
A59: =A49 -> 1 | B59: =B49 -> 3 | C59: Обед | D59: закуска
D60: 1 блюдо
D61: 2 блюдо
D62: гарнир
D63: напиток
D64: хлеб бел.
D65: хлеб черн.
D68: итого | F68: =SUM(F59:F67) -> 0 | G68: =SUM(G59:G67) -> 0 | H68: =SUM(H59:H67) -> 0 | I68: =SUM(I59:I67) -> 0 | J68: =SUM(J59:J67) -> 0 | L68: 0
A69: =A49 -> 1 | B69: =B49 -> 3 | C69: Итого за день: | F69: =F58+F68 -> 630 | G69: =G58+G68 -> 19.7 | H69: =H58+H68 -> 14.12 | I69: =I58+I68 -> 75.24 | J69: =J58+J68 -> 533.81 | L69: 0
A70: 1 | B70: 4 | C70: Завтрак | D70: гор.блюдо | E70: борщ с капустой и картофелем | F70: 250 | G70: 5.78 | H70: 7.27 | I70: 41.07 | J70: 142.97 | K70: 82
E71: мясна фрикаделька | F71: 20
D72: гор.напиток | E72: чай | F72: 200 | G72: 0.13 | H72: 0.02 | I72: 15.2 | J72: 62 | K72: 377
D73: гор.напиток | E73: сахар | F73: 10
D74: гор.напиток | E74: лимон | F74: 7
D75: хлеб | E75: пшеничный | F75: 40 | G75: 3.04 | H75: 0.32 | I75: 15.68 | J75: 94.66 | K75: ПР
D76: хлеб | E76: сельский | F76: 30 | G76: 1.5 | H76: 0.3 | I76: 13.5 | J76: 66 | K76: ПР
E77: ватрушка с повидлом | F77: 50 | G77: 3.1 | H77: 2.07 | I77: 30.64 | J77: 154.17 | K77: 410
D78: фрукты
D81: итого | F81: =SUM(F70:F80) -> 607 | G81: =SUM(G70:G80) -> 13.55 | H81: =SUM(H70:H80) -> 9.98 | I81: =SUM(I70:I80) -> 116.09 | J81: =SUM(J70:J80) -> 519.8 | L81: 0
A82: =A70 -> 1 | B82: =B70 -> 4 | C82: Обед | D82: закуска
D83: 1 блюдо
D84: 2 блюдо
D85: гарнир
D86: напиток
D87: хлеб бел.
D88: хлеб черн.
D91: итого | F91: =SUM(F82:F90) -> 0 | G91: =SUM(G82:G90) -> 0 | H91: =SUM(H82:H90) -> 0 | I91: =SUM(I82:I90) -> 0 | J91: =SUM(J82:J90) -> 0 | L91: 0
A92: =A70 -> 1 | B92: =B70 -> 4 | C92: Итого за день: | F92: =F81+F91 -> 607 | G92: =G81+G91 -> 13.55 | H92: =H81+H91 -> 9.98 | I92: =I81+I91 -> 116.09 | J92: =J81+J91 -> 519.8 | L92: 0
A93: 1 | B93: 5 | C93: Завтрак | D93: гор.блюдо | E93: котлеты куриные | F93: 80 | G93: 11.05 | H93: 12.47 | I93: 13.06 | J93: 209 | K93: 295
E94: соус | F94: 30
E95: макаронные изделия отварные | F95: 180 | G95: 6.54 | H95: 6.94 | I95: 36.54 | J95: 234.85 | K95: 203
E96: масло сливочное | F96: 5
D97: закуска | E97: салат из свеклы отварной | F97: 60 | G97: 0.84 | H97: 3.6 | I97: 4.95 | J97: 55.68 | K97: 52
D98: гор.напиток | E98: кисель | F98: 200 | G98: 0 | H98: 0 | I98: 15 | J98: 60 | K98: 484
D99: хлеб | E99: пшеничный | F99: 40 | G99: 3.04 | H99: 0.32 | I99: 15.68 | J99: 94.66 | K99: ПР
D100: хлеб | E100: сельский | F100: 30 | G100: 1.5 | H100: 0.3 | I100: 13.5 | J100: 66 | K100: ПР
D101: фрукты
D104: итого | F104: =SUM(F93:F103) -> 625 | G104: =SUM(G93:G103) -> 22.97 | H104: =SUM(H93:H103) -> 23.63 | I104: =SUM(I93:I103) -> 98.73 | J104: =SUM(J93:J103) -> 720.19 | L104: 0
A105: =A93 -> 1 | B105: =B93 -> 5 | C105: Обед | D105: закуска
D106: 1 блюдо
D107: 2 блюдо
D108: гарнир
D109: напиток
D110: хлеб бел.
D111: хлеб черн.
D114: итого | F114: =SUM(F105:F113) -> 0 | G114: =SUM(G105:G113) -> 0 | H114: =SUM(H105:H113) -> 0 | I114: =SUM(I105:I113) -> 0 | J114: =SUM(J105:J113) -> 0 | L114: 0
A115: =A93 -> 1 | B115: =B93 -> 5 | C115: Итого за день: | F115: =F104+F114 -> 625 | G115: =G104+G114 -> 22.97 | H115: =H104+H114 -> 23.63 | I115: =I104+I114 -> 98.73 | J115: =J104+J114 -> 720.19 | L115: 0
A116: 2 | B116: 1 | C116: Завтрак | D116: гор.блюдо | E116: тефтели говяжьи | F116: 60 | G116: 7.46 | H116: 8.29 | I116: 9.44 | J116: 142 | K116: 279
E117: соус | F117: 50
E118: макаронные изделия отварные | F118: 180 | G118: 6.54 | H118: 6.94 | I118: 36.54 | J118: 234.85 | K118: 203
E119: масло сливочное | F119: 5
D120: гор.напиток | E120: чай черный с сахаром | F120: 200 | G120: 0.07 | H120: 0.02 | I120: 15 | J120: 60 | K120: 376
D121: хлеб | E121: пшеничный | F121: 20 | G121: 1.52 | H121: 0.16 | I121: 7.84 | J121: 47.33 | K121: ПР
D122: хлеб | E122: сельский | F122: 30 | G122: 1.5 | H122: 0.3 | I122: 13.5 | J122: 66 | K122: ПР
D123: фрукты | E123: яблоко | F123: 100 | G123: 0.4 | H123: 0.4 | I123: 9.8 | J123: 47 | K123: 338
D126: итого | F126: =SUM(F116:F125) -> 645 | G126: =SUM(G116:G125) -> 17.49 | H126: 16.11 | I126: 92.12 | J126: 597.18 | L126: =SUM(L116:L125) -> 0
A127: =A116 -> 2 | B127: =B116 -> 1 | C127: Обед | D127: закуска
D128: 1 блюдо
D129: 2 блюдо
D130: гарнир
D131: напиток
D132: хлеб бел.
D133: хлеб черн.
D136: итого | F136: =SUM(F127:F135) -> 0 | G136: =SUM(G127:G135) -> 0 | H136: 0 | I136: 0 | J136: 0 | L136: =SUM(L127:L135) -> 0
A137: =A116 -> 2 | B137: =B116 -> 1 | C137: Итого за день: | F137: =F126+F136 -> 645 | G137: =G126+G136 -> 17.49 | H137: =H126+H136 -> 16.11 | I137: =I126+I136 -> 92.12 | J137: =J126+J136 -> 597.18 | L137: 0
A138: 2 | B138: 2 | C138: Завтрак | D138: гор.блюдо | E138: свекольник | F138: 250 | G138: 6.73 | H138: 10.18 | I138: 13.53 | J138: 182.6 | K138: 83
E139: мясо птицы | F139: 20
D140: гор.напиток | E140: компот из сухофруктов | F140: 200 | G140: 0.66 | H140: 0.09 | I140: 32.01 | J140: 132.8 | K140: 349
D141: хлеб | E141: пшеничный | F141: 40 | G141: 3.04 | H141: 0.32 | I141: 15.68 | J141: 94.66 | K141: ПР
D142: хлеб | E142: сельский | F142: 30 | G142: 1.5 | H142: 0.3 | I142: 13.5 | J142: 66 | K142: ПР
E143: ватрушка с творогом | F143: 50 | G143: 6.4 | H143: 3.81 | I143: 20.26 | J143: 140.27 | K143: 410
D144: фрукты
D147: итого | F147: =SUM(F138:F146) -> 590 | G147: =SUM(G138:G146) -> 18.33 | H147: 14.7 | I147: 94.98 | J147: 616.33 | L147: =SUM(L138:L146) -> 0
A148: =A138 -> 2 | B148: =B138 -> 2 | C148: Обед | D148: закуска
D149: 1 блюдо
D150: 2 блюдо
D151: гарнир
D152: напиток
D153: хлеб бел.
D154: хлеб черн.
D157: итого | F157: =SUM(F148:F156) -> 0 | G157: =SUM(G148:G156) -> 0 | H157: 0 | I157: 0 | J157: 0 | L157: =SUM(L148:L156) -> 0
A158: =A138 -> 2 | B158: =B138 -> 2 | C158: Итого за день: | F158: =F147+F157 -> 590 | G158: =G147+G157 -> 18.33 | H158: =H147+H157 -> 14.7 | I158: =I147+I157 -> 94.98 | J158: =J147+J157 -> 616.33 | L158: 0
A159: 2 | B159: 3 | C159: Завтрак | D159: гор.блюдо | E159: птица тушеная | F159: 50 | G159: 11.65 | H159: 11.66 | I159: 3.51 | J159: 166 | K159: 290
E160: соус | F160: 50
E161: пюре картофельное | F161: 150 | G161: 3.06 | H161: 4.8 | I161: 20.43 | J161: 137.25 | K161: 312
D162: закуска | E162: салат из моркови | F162: 60 | G162: 0.73 | H162: 0.05 | I162: 6.38 | J162: 49.02 | K162: 62
D163: гор.напиток | E163: какао с молоком | F163: 200 | G163: 1.07 | H163: 3.54 | I163: 17.57 | J163: 118.6 | K163: 382
D164: хлеб | E164: пшеничный | F164: 40 | G164: 3.04 | H164: 0.32 | I164: 15.68 | J164: 94.66 | K164: ПР
D165: хлеб | E165: сельский | F165: 30 | G165: 1.5 | H165: 0.3 | I165: 13.5 | J165: 66 | K165: ПР
E166: печенье | F166: 30 | G166: 2.25 | H166: 2.94 | I166: 22.32 | J166: 124.5 | K166: ПР
D167: фрукты
D170: итого | F170: =SUM(F159:F169) -> 610 | G170: =SUM(G159:G169) -> 23.3 | H170: 23.61 | I170: 99.39 | J170: 756.03 | L170: =SUM(L159:L169) -> 0
A171: =A159 -> 2 | B171: =B159 -> 3 | C171: Обед | D171: закуска
D172: 1 блюдо
D173: 2 блюдо
D174: гарнир
D175: напиток
D176: хлеб бел.
D177: хлеб черн.
D180: итого | F180: =SUM(F171:F179) -> 0 | G180: =SUM(G171:G179) -> 0 | H180: 0 | I180: 0 | J180: 0 | L180: =SUM(L171:L179) -> 0
A181: =A159 -> 2 | B181: =B159 -> 3 | C181: Итого за день: | F181: =F170+F180 -> 610 | G181: =G170+G180 -> 23.3 | H181: =H170+H180 -> 23.61 | I181: =I170+I180 -> 99.39 | J181: =J170+J180 -> 756.03 | L181: 0
A182: 2 | B182: 4 | C182: Завтрак | D182: гор.блюдо | E182: суп картофельный с бобовыми | F182: 250 | G182: 9.47 | H182: 7.62 | I182: 16.67 | J182: 187.47 | K182: 102
E183: мясная фрикаделька | F183: 20
D184: гор.напиток | E184: чай | F184: 200 | G184: 0.13 | H184: 0.02 | I184: 15.2 | J184: 62 | K184: 377
E185: сахар | F185: 10
E186: лимон | F186: 7
D187: хлеб | E187: пшеничный | F187: 40 | G187: 3.04 | H187: 0.32 | I187: 15.68 | J187: 94.66 | K187: ПР
D188: хлеб | E188: сельский | F188: 30 | G188: 1.5 | H188: 0.3 | I188: 13.5 | J188: 66 | K188: ПР
E189: булочка дорожная | F189: 60 | G189: 4.07 | H189: 8.38 | I189: 25.28 | J189: 192.6 | K189: 425
D190: фрукты
D193: итого | F193: =SUM(F182:F192) -> 617 | G193: =SUM(G182:G192) -> 18.21 | H193: 16.64 | I193: 86.33 | J193: 602.73 | L193: =SUM(L182:L192) -> 0
A194: =A182 -> 2 | B194: =B182 -> 4 | C194: Обед | D194: закуска
D195: 1 блюдо
D196: 2 блюдо
D197: гарнир
D198: напиток
D199: хлеб бел.
D200: хлеб черн.
D203: итого | F203: =SUM(F194:F202) -> 0 | G203: =SUM(G194:G202) -> 0 | H203: 0 | I203: 0 | J203: 0 | L203: =SUM(L194:L202) -> 0
A204: =A182 -> 2 | B204: =B182 -> 4 | C204: Итого за день: | F204: =F193+F203 -> 617 | G204: =G193+G203 -> 18.21 | H204: =H193+H203 -> 16.64 | I204: =I193+I203 -> 86.33 | J204: =J193+J203 -> 602.73 | L204: 0
A205: 2 | B205: 5 | C205: Завтрак | D205: гор.блюдо | E205: сосиски говяжьи халяль | F205: 80 | G205: 8.78 | H205: 24.62 | I205: 3.17 | J205: 270.59 | K205: 295
E206: соус | F206: 40
E207: каша гречневая рассыпчатая | F207: 150 | G207: 8.57 | H207: 9.25 | I207: 38.61 | J207: 271.25 | K207: 171
E208: масло сливочное | F208: 5
D209: закуска | E209: салат из свеклы отварной | F209: 60 | G209: 0.84 | H209: 3.6 | I209: 4.95 | J209: 55.68 | K209: 52
D210: гор.напиток | E210: кисель | F210: 200 | G210: 0 | H210: 0 | I210: 15 | J210: 60 | K210: 484
D211: хлеб | E211: пшеничный | F211: 40 | G211: 3.04 | H211: 0.32 | I211: 15.68 | J211: 94.66 | K211: ПР
D212: хлеб | E212: сельский | F212: 30 | G212: 1.5 | H212: 0.3 | I212: 13.5 | J212: 66 | K212: ПР
D213: фрукты
D216: итого | F216: =SUM(F205:F215) -> 605 | G216: =SUM(G205:G215) -> 22.73 | H216: 38.09 | I216: 90.91 | J216: 818.18 | L216: =SUM(L205:L215) -> 0
A217: =A205 -> 2 | B217: =B205 -> 5 | C217: Обед | D217: закуска
D218: 1 блюдо
D219: 2 блюдо
D220: гарнир
D221: напиток
D222: хлеб бел.
D223: хлеб черн.
D226: итого | F226: =SUM(F217:F225) -> 0 | G226: =SUM(G217:G225) -> 0 | H226: 0 | I226: 0 | J226: 0 | L226: =SUM(L217:L225) -> 0
A227: =A205 -> 2 | B227: =B205 -> 5 | C227: Итого за день: | F227: =F216+F226 -> 605 | G227: =G216+G226 -> 22.73 | H227: =H216+H226 -> 38.09 | I227: =I216+I226 -> 90.91 | J227: =J216+J226 -> 818.18 | L227: 0
A228: 1 | B228: 6 | C228: Завтрак | D228: гор.блюдо | E228: каша молочная геркулесовая | F228: 200 | G228: 8.11 | H228: 12.81 | I228: 36.73 | J228: 295.79 | K228: 173
E229: сливочное масло | F229: 5
D230: гор.напиток | E230: чай черный с сахаром | F230: 200 | G230: 0.07 | H230: 0.02 | I230: 15 | J230: 60 | K230: 376
D231: хлеб | E231: сельский | F231: 30 | G231: 1.5 | H231: 0.3 | I231: 13.5 | J231: 66 | K231: ПР
E232: бутерброд с сыром | F232: 40 | G232: 4.64 | H232: 6.64 | I232: 11.86 | J232: 125.6 | K232: 3
D233: фрукты
D236: итого | F236: =SUM(F228:F235) -> 475 | G236: =SUM(G228:G235) -> 14.32 | H236: 19.77 | I236: 77.09 | J236: 547.39 | L236: =SUM(L228:L235) -> 0
A237: =A228 -> 1 | B237: 6 | C237: Обед | D237: закуска
D238: 1 блюдо
D239: 2 блюдо
D240: гарнир
D241: напиток
... 21 more rows

Sheet Лист2
